Cogmind - Beta 15 @@@ ROGUE MODE // 2025.10.07 @ 20:44:43 Player: beans Result: Destroyed by G-47 Trooper with Particle Gun Performance ------------- Evolutions (2) 1000 Regions Visited (4) 800 Robots Destroyed (64) 320 Value Destroyed (1875) 1875 Prototype IDs (2) 40 Alien Tech Used (0) 0 Bonus (235) 235 TOTAL SCORE: 4270 Bonus ------- Pacifist 200 Follower Combat Kills 35 Cogmind --------- Core Integrity 0/550 Matter 151/300 Energy 100/100 System Corruption 2% Temperature Cool (9) Movement Treading (160) Location -8/Materials Parts ------- > --- POWER (1) -------- (None) > --- PROPULSION (2) --- Light Treads Light Treads > --- UTILITY (5) ------ Medium Storage Unit Hardened Medium Armor Plating > --- WEAPON (3) ------- Gauss Rifle > --- INVENTORY (10) --- Heavy Ion Engine Wheel Autogun Peak State ------------ > --- POWER ------------ Heavy Ion Engine > --- PROPULSION ------- Light Treads > --- UTILITY ---------- Medium Storage Unit Hardened Medium Armor Plating Hardened Medium Armor Plating Splice Drone Bay > --- WEAPON ----------- Heavy Assault Rifle Heavy Assault Rifle Shotgun > --- INVENTORY -------- Heavy Ion Engine Light Treads Hardened Medium Armor Plating Assault Rifle Autogun Autogun Shotgun [Rating: 25] Favorites ----------- Power Heavy Ion Engine Engine Heavy Ion Engine Propulsion Light Treads Treads Light Treads Utility Medium Storage Unit Device Splice Drone Bay Storage Medium Storage Unit Protection Hardened Light Armor Plating Weapon Heavy Assault Rifle Ballistic Gun Heavy Assault Rifle Build | -11 -10 -9 -9 -8 ------- Run | Yrd Mat Mat Min Mat Slots Evolved 4 | . . 2 . 2 Power . | . . . . . Propulsion . | . . . . . Utility 3 | . . 1 . 2 Weapon 1 | . . 1 . . Parts Attached 27 | 4 . 10 1 12 Power 2 | . . 2 . . Engine 2 | . . 2 . . Core . | . . . . . Reactor . | . . . . . Propulsion 5 | 2 . . . 3 Treads 5 | 2 . . . 3 Leg . | . . . . . Wheel . | . . . . . Hover . | . . . . . Flight . | . . . . . Utility 10 | 1 . 5 1 3 Device 2 | . . 1 1 . Storage 2 | 1 . 1 . . Processor . | . . . . . Hackware . | . . . . . Protection 6 | . . 3 . 3 Artifact . | . . . . . Weapon 10 | 1 . 3 . 6 Energy Gun . | . . . . . Energy Cannon . | . . . . . Ballistic Gun 10 | 1 . 3 . 6 Ballistic Cannon . | . . . . . Launcher . | . . . . . Special Weapon . | . . . . . Impact Weapon . | . . . . . Slashing Weapon . | . . . . . Piercing Weapon . | . . . . . Special Melee Weapon . | . . . . . Unidentified Prototypes 2 | . . 1 1 . Parts Lost 16 | . . . 1 15 Power 1 | . . . . 1 Propulsion 3 | . . . . 3 Utility 4 | . . . 1 3 Weapon 8 | . . . . 8 Highest Loss Streak 9 | . . . 1 9 To Critical Strikes . | . . . . . Average Backups 7 | . . 6 10 6 Power 1 | . . 1 1 1 Propulsion 1 | . . 2 2 1 Utility 1 | . . . 2 . Weapon 3 | . . 2 5 2 Tool/Special . | . . . . . Unused Backups 8 | . . 6 . 2 Power 2 | . . 2 . . Propulsion 2 | . . 1 . 1 Utility 1 | . . . . 1 Weapon 3 | . . 3 . . Tool/Special . | . . . . . Average Slot Usage (%) 78 | . 45 80 94 60 Engine 6 | . . 5 11 3 Treads 19 | . 20 21 22 13 Device 2 | . . . 5 2 Storage 10 | . 10 10 11 9 Protection 9 | . . 10 11 8 Ballistic Gun 28 | . 14 31 33 22 Peak Build Rating 25 | 4 4 15 21 25 Average Rating 13 | 2 3 10 17 15 On Entrance 8 | . 4 1 15 21 Naked Turns . | . . . . . Heaviest Build 43 | 7 7 33 39 43 Greatest Support 40 | 40 40 40 40 40 Greatest Overweight (x) 14 | 2 . . . 14 Average Overweight (x) . | 1 . . . . Largest Inventory Capacity 10 | 8 8 10 10 10 Average Capacity 9 | 7 7 8 10 10 Most Carried 10 | 2 4 10 10 10 Average Carried 7 | . . 6 10 6 Final Capacity 10 | 8 5 10 10 10 Final Carried 10 | . 4 10 10 3 Class Distribution -------------------- 53% | Tank 19% | Mutant 19% | Scavenger-Tank 6% | Scavenger-Mutant Dominant Class ---------------- Mutant | -10/Materials Tank | -9/Materials Tank | -9/Mines Mutant | -8/Materials Resources | -11 -10 -9 -9 -8 ----------- Run | Yrd Mat Mat Min Mat Matter Collected 1694 | 122 . 765 105 702 Remotely . | . . . . . Salvage Created 2591 | . . 1077 208 1306 Parts 163 | . . 86 11 66 Haulers Intercepted 4 | . . 2 . 2 Recyclers Shooed 1 | . . 1 . . Parts Field Recycled . | . . . . . Retrieved Matter . | . . . . . Parts Self-Destructed . | . . . . . Prevented . | . . . . . Kills | -11 -10 -9 -9 -8 ------- Run | Yrd Mat Mat Min Mat Combat Hostiles Destroyed 46 | . . 20 5 21 Guns 45 | . . 20 5 20 AOE 1 | . . . . 1 Classes Destroyed 13 | . . 11 . 2 Worker 4 | . . 3 . 1 Builder 4 | . . 2 . 2 Tunneler 1 | . . 1 . . Hauler 4 | . . 2 . 2 Recycler 3 | . . 1 . 2 Mechanic 1 | . . . . 1 Watcher 1 | . . 1 . . Swarmer 7 | . . 5 . 2 Grunt 23 | . . 7 4 12 Brawler 1 | . . 1 . . Duelist 2 | . . 1 1 . Sentry 11 | . . 6 . 5 Hunter 2 | . . . . 2 Best Kill Streak 7 | . . 4 3 7 Combat Bots Only 6 | . . 3 3 6 Max Kills in Single Turn 2 | . . 2 1 2 Gunslinging 1 | . . 1 . 1 Exploded 1 | . . . . 1 Melee . | . . . . . Uniques/NPCs Destroyed . | . . . . . Combat | -11 -10 -9 -9 -8 -------- Run | Yrd Mat Mat Min Mat Hostile Shots Fired 324 | . 6 45 18 255 Missed 92 | . 4 16 9 63 Hits 232 | . 2 29 9 192 Melee 1 | . . 1 . . Projectile 231 | . 2 28 9 192 Critical Strikes 8 | . . . . 8 Damage Taken 3529 | . 26 364 129 3010 Core 582 | . . 27 . 555 Absorbed by Shields . | . . . . . Core Remaining (%) 97 | 100 100 . 93 . Volleys Fired 155 | . 4 59 11 81 Largest 3 | . 1 3 3 3 Hottest 79 | . 20 66 66 79 Shots Fired 412 | . 4 169 33 206 Gun 412 | . 4 169 33 206 Cannon . | . . . . . Launcher . | . . . . . Special . | . . . . . Kinetic 412 | . 4 169 33 206 Thermal . | . . . . . Explosive . | . . . . . Electromagnetic . | . . . . . Robot Hit Streak 15 | . . 15 12 10 Robot Miss Streak 4 | . 4 3 3 4 Penetration Max 1 | . . . . 1 Secondary Targets 12 | . . 4 2 6 Max Gunslinging Chain 1 | . . 1 1 1 Shots Hit Robots 267 | . . 106 23 138 Core Hits 110 | . . 47 7 56 Critical Kills 2 | . . . 1 1 Critical Parts Destroyed 2 | . . . . 2 Critical Strikes 5 | . . . 1 4 Destroy 5 | . . . 1 4 Melee Attacks . | . . . . . Impact . | . . . . . Slashing . | . . . . . Piercing . | . . . . . Sneak Attacks . | . . . . . Combat Hostiles . | . . . . . Follow-up Attacks . | . . . . . Damage Inflicted 4345 | . . 1530 336 2479 Guns 4345 | . . 1530 336 2479 Cannons . | . . . . . Explosions . | . . . . . Melee . | . . . . . Ramming . | . . . . . Kinetic 4345 | . . 1530 336 2479 Thermal . | . . . . . Explosive . | . . . . . Electromagnetic . | . . . . . Impact . | . . . . . Slashing . | . . . . . Piercing . | . . . . . Highest Corruption 2 | . . . . 2 Average Corruption 1 | . . . . 1 Corruption Purged . | . . . . . Corruption Blocked . | . . . . . Effects 8 | . . . . 8 Message Errors 3 | . . . . 3 Heat Flow Errors 1 | . . . . 1 Data Loss (minor) 2 | . . . . 2 Weapon Failures 2 | . . . . 2 Overload Shots . | . . . . . Overflow Damage . | . . . . . Projectiles . | . . . . . Explosions . | . . . . . Melee . | . . . . . Knockbacks . | . . . . . Impact . | . . . . . Kinetic . | . . . . . Secondary . | . . . . . Self-Inflicted Damage . | . . . . . Shots . | . . . . . Rammed . | . . . . . Targets Rammed . | . . . . . Kicked . | . . . . . Crushed . | . . . . . Highest Temperature 431 | . . 99 106 431 Average Temperature 68 | . . 20 42 107 Received Heat Transfer 1224 | . 15 111 72 1026 Effects 3 | . . . . 3 Shutdowns 1 | . . . . 1 Energy Bleed 1 | . . . . 1 Short Circuit 1 | . . . . 1 Siege Activations . | . . . . . Martial Activations . | . . . . . Shielding Activations . | . . . . . Robots Disrupted . | . . . . . Combat Hostiles . | . . . . . Robots Corrupted . | . . . . . Combat Hostiles . | . . . . . Parts Fried . | . . . . . Impact Corruptions . | . . . . . Robots Melted . | . . . . . Combat Hostiles . | . . . . . Parts Melted . | . . . . . Heat Transferred . | . . . . . Parts Sabotaged . | . . . . . Parts Stolen . | . . . . . Parts Stripped . | . . . . . Power Chain Reactions . | . . . . . Alert | -11 -10 -9 -9 -8 ------- Run | Yrd Mat Mat Min Mat Maximum Alert Level 1 | . . 1 . 1 Low Security (%) 91 | 100 100 90 100 80 Level 1 8 | . . 9 . 19 Level 2 . | . . . . . Level 3 . | . . . . . Level 4 . | . . . . . Level 5 . | . . . . . High Security . | . . . . . Max Security . | . . . . . Peak Influence 228 | . 125 220 138 228 Initial 78 | . . 48 78 . Average 73 | . 18 95 26 106 Influence Increases 1480 | . 135 558 123 664 Destroy 0b10 Robot/C 940 | . . 400 100 440 Destroy 0b10 Robot/NC 90 | . . 50 . 40 Destroy Leader 230 | . . 106 20 104 Allied During Kill 5 | . . . 3 2 Disable Machine 45 | . 30 . . 15 Destroy Structure 5 | . . 2 . 3 Lose Combat Pursuer 165 | . 105 . . 60 Influence Decreases 1245 | . 20 470 326 429 Entered New Map 192 | . . 67 125 . Time Decay 886 | . 20 403 191 272 Lost Part 156 | . . . 10 146 Lost Ally 11 | . . . . 11 Squads Dispatched 8 | . 2 1 . 5 Investigation 4 | . 2 1 . 1 Extermination . | . . . . . Reinforcement 4 | . . . . 4 Assault . | . . . . . Garrison . | . . . . . Intercept . | . . . . . Searches Triggered . | . . . . . Construction Impeded 1 | . . . . 1 Haulers Reinforced . | . . . . . Active Scanning Responses . | . . . . . Cargo Convoy Interrupts . | . . . . . Stealth | -11 -10 -9 -9 -8 --------- Run | Yrd Mat Mat Min Mat Distress Signals 11 | . 2 3 . 6 Communications Jammed . | . . . . . Distress Signals . | . . . . . Times Spotted 79 | . 10 20 4 45 Peak Tracking Total 10 | . 10 4 3 7 Tactical Retreats 4 | . 1 . . 3 Traps | -11 -10 -9 -9 -8 ------- Run | Yrd Mat Mat Min Mat Traps Triggered 6 | . 2 1 . 3 Indirectly . | . . . . . Trap Hack Attempts . | . . . . . Triggered . | . . . . . Disarmed . | . . . . . Reprogrammed . | . . . . . Reused . | . . . . . Traps Extracted . | . . . . . Installed . | . . . . . Triggered . | . . . . . Machines | -11 -10 -9 -9 -8 ---------- Run | Yrd Mat Mat Min Mat Machines Disabled 3 | . 2 . . 1 Max in Single Turn 1 | . 1 . . 1 Machines Repaired . | . . . . . Machines Dismantled . | . . . . . Machines Sabotaged . | . . . . . Overloaded Fab Kills . | . . . . . Hacking | -11 -10 -9 -9 -8 --------- Run | Yrd Mat Mat Min Mat Machines Accessed 1 | . . . 1 . Terminals . | . . . . . Fabricators . | . . . . . Repair Stations . | . . . . . Recycling Units . | . . . . . Scanalyzers . | . . . . . Garrison Access . | . . . . . Total Hacks 1 | . . . 1 . Successful 1 | . . . 1 . Failed . | . . . . . Catastrophic . | . . . . . Database Lockouts . | . . . . . Manual . | . . . . . Terminals . | . . . . . Fabricators . | . . . . . Repair Stations . | . . . . . Recycling Units . | . . . . . Scanalyzers . | . . . . . Garrison Access . | . . . . . Terminal Hacks 1 | . . . 1 . Open Door 1 | . . . 1 . Fabricator Hacks . | . . . . . Repair Station Hacks . | . . . . . Recycling Unit Hacks . | . . . . . Scanalyzer . | . . . . . Garrison Access Hacks . | . . . . . Unauthorized Hacks . | . . . . . Terminals . | . . . . . Fabricators . | . . . . . Repair Stations . | . . . . . Recycling Units . | . . . . . Scanalyzers . | . . . . . Garrison Access . | . . . . . Data Cores Recovered . | . . . . . Used . | . . . . . Hacking Detections . | . . . . . Full Trace Events . | . . . . . Feedback Events . | . . . . . Feedback Blocked . | . . . . . Robot Schematics Acquired . | . . . . . Robots Built . | . . . . . Authchips . | . . . . . Time . | . . . . . Total Robot Build Rating . | . . . . . Part Schematics Acquired . | . . . . . Parts Built . | . . . . . Authchips . | . . . . . Time . | . . . . . Total Part Build Rating . | . . . . . Parts Repaired . | . . . . . Time . | . . . . . Parts Recycled . | . . . . . Recycled Matter . | . . . . . Retrieved Matter . | . . . . . Retrieved Components . | . . . . . Parts Scanalyzed . | . . . . . Part Schematics Acquired . | . . . . . Parts Damaged . | . . . . . Bothacking | -11 -10 -9 -9 -8 ------------ Run | Yrd Mat Mat Min Mat Used RIF Installer . | . . . . . Robots Hacked . | . . . . . Non-combat . | . . . . . Combat . | . . . . . Robot Hacks Applied . | . . . . . Relay Couplers Released . | . . . . . Fabnet Peak Effective % . | . . . . . Robots Rewired . | . . . . . Allies Hacked . | . . . . . Hacks Repelled . | . . . . . Allies | -11 -10 -9 -9 -8 -------- Run | Yrd Mat Mat Min Mat Total Allies 1 | . . . 1 . Largest Group 1 | . . . 1 . Highest-Rated Group 31 | . . . 31 . Highest-Rated Ally 31 | . . . 31 . Total Orders 4 | . . . 4 . EXPLORE 2 | . . . 2 . RETURN 2 | . . . 2 . Ally Attacks 11 | . . . 9 2 Total Damage 114 | . . . 107 7 Kills 1 | . . . . 1 Allies Corrupted . | . . . . . Allies Melted . | . . . . . Intel | -11 -10 -9 -9 -8 ------- Run | Yrd Mat Mat Min Mat Active Infowar (turns) . | . . . . . Robot Analysis Total . | . . . . . Derelict Logs Recovered 2 | . . . 2 . Drone Launches 4 | . . . 2 2 Drone Recoveries 3 | . . . 2 1 Exploration | -11 -10 -9 -9 -8 ------------- Run | Yrd Mat Mat Min Mat Turns Passed 2862 | 82 105 1188 807 680 Spaces Moved 1352 | 53 104 595 400 200 Core 132 | 35 65 13 . 19 Treads 1220 | 18 39 582 400 181 Legs . | . . . . . Wheels . | . . . . . Hover . | . . . . . Flight . | . . . . . Fastest Speed 50 | 50 50 50 160 160 Average Speed 156 | 142 91 157 160 185 Slowest Speed 750 | 160 160 160 160 750 Overloaded Moves . | . . . . . Propulsion Burnouts . | . . . . . Robots Hopped . | . . . . . Potential Cave-ins . | . . . . . Cave-ins Triggered . | . . . . . Exploration Rate (%) 42 | 4 32 46 100 29 Regions Visited 4 Branch Regions 1 Pre-discovered Areas 1 | . . . 1 . Known Exits Taken . | . . . . . Unknown Exits Taken 4 | 1 1 1 1 . Scrap Searched 1 | . . . 1 . Spaces Dug . | . . . . . Terrain Destroyed . | . . . . . Melee . | . . . . . Projectile . | . . . . . AOE . | . . . . . Terrain Rammed . | . . . . . Walls Destroyed . | . . . . . Machines Disabled . | . . . . . Actions | -11 -10 -9 -9 -8 --------- Run | Yrd Mat Mat Min Mat Total 1771 | 60 111 718 542 340 Wait 180 | . . 22 131 27 Move 1348 | 52 103 594 399 200 Hop . | . . . . . Pick Up 32 | 4 1 20 . 7 Fast Attach 5 | . . 4 1 . Attach 26 | 4 . 7 . 15 Detach 6 | . 3 . . 3 Swap 6 | . . 2 . 4 Drop 13 | . . 10 . 3 Fire 155 | . 4 59 11 81 Melee . | . . . . . Ram . | . . . . . Kick . | . . . . . Crush . | . . . . . Escape Stasis . | . . . . . Rewire . | . . . . . Trap . | . . . . . Miscellaneous . | . . . . . Route ------- -11/Scrapyard -10/Materials -9/Materials (discovered 3 exits: [*Mat x2] / *Min) -9/Mines (discovered 2 exits: [*Mat x2]) -8/Materials (discovered 1 exit: Fac) History --------- Turn | Location | Event 9 | -11/Scrapyard | Discovered new exit (range 15) 83 | -11/Scrapyard | Entered Materials 180 | -10/Materials | Discovered new exit (range 15) 188 | -10/Materials | Entered another Materials area 188 | -9/Materials | Evolved 2 slots: Utility x1, Weapon x1 328 | -9/Materials | Build established: Mutant 461 | -9/Materials | Discovered new exit (range 7) 655 | -9/Materials | Build established: Tank 864 | -9/Materials | Discovered new exit (range 7) 1053 | -9/Materials | Build established: Scavenger-Tank 1319 | -9/Materials | Discovered new exit (range 9) 1376 | -9/Materials | Entered Mines 1433 | -9/Mines | Discovered new exit (range 10) 1489 | -9/Mines | Received a Mining Laser from a helpful Derelict 1522 | -9/Mines | Learned 2 Materials zone layouts 1637 | -9/Mines | Build established: Tank 1721 | -9/Mines | Discovered new exit (range 13) 1764 | -9/Mines | Found the Drone Emporium 1771 | -9/Mines | Found Prototype Device 1771 | -9/Mines | Identified Splice Drone Bay 2183 | -9/Mines | Entered Materials 2183 | -8/Materials | Evolved 2 slots: Utility x2 2184 | -8/Materials | Identified exit to Factory 2403 | -8/Materials | Lost 3 parts (2n1w) 2467 | -8/Materials | Core integrity fell below 50% 2488 | -8/Materials | Core integrity fell below 20% 2494 | -8/Materials | Lost 9 parts (1p1n3u4w) 2863 | -8/Materials | Destroyed by G-47 Trooper with Particle Gun Last Messages --------------- Slug penetrates Wall. Slug penetrates G-47 Trooper. G-47 Trooper destroyed. Acquired 60 matter. Slug penetrates Wall. K-01 Serf cleans the Fusion Modulator. Slug penetrates U-05 Engineer. Destroyed Flight Unit. Slug penetrates U-05 Engineer. O-16 Technician sends out distress signal. O-16 Technician: "IFF HANDSHAKE FAILED. SECURING TERMINAL." ALERT: Hostiles spotted, dispatching reinforcements to Terminal M010. Slug penetrates K-01 Serf. K-01 Serf destroyed. System corrupted: Gauss Rifle jammed. Slug penetrates Y-45 Defender. Y-45 Defender destroyed. Gauss Rifle destroyed. Map ----- +----------------------------------------------------+ | ?????????????????????????????# #????? ??????? | | ?????????????????????????????# #????# #??????? | | ?????????????????????????????# #??? # #??????? | | ?????????????????????????????# ####+# #??????? | | ?????????????????????????????# + # | | ?????????????????????????????# #??????? | | ??????????????????????####+### #??????? | | ??????????????????????# #??????? | | ??????????????????????# +??????? | | ??????????????????????# #??????? | | ??????????????????????# #####/#########??????? | | ??????????????????????# #! #????????????? | | ??????????????????????# # """ #????????????? | | ??????????????????????# += """ *#????????????? | | ??????????????????????# gg# """ #????????????? | | ??????????????????????# #] #????????????? | | ??????????????????????# #########????????????? | | ??????????????????????# #???###??????????????? | | ??????????????????????# a #?? ???????????????? | | ??????????????????????# #?""" "??????????????? | | ????????????# ??????# # """ "??????????????? | | ????????????# # # """ T" #???????????? | | ????????????# + + "" #???????????? | | ????????????# # # """ "" #???????????? | | ????????????# ### #??"" ?????????????? | | ????????????# ???#@#???? ?????????????? | | ????????????# ???#%#????????????????????? | | ????????????########????#=#????????????????????? | | ????????????????????????# #????????????????????? | | ???????????????????????? #????????????????????? | | ???????????????????????? #????????????????????? | | ????????????????????????=%#????????????????????? | | ???????????????????????? * ????????????????????? | | ????????????????????????###????????????????????? | | ???????????????????????????????????????????????? | | ???????????????????????????????????????????????? | | ???????????????????????????????????????????????? | | ???????????????????????????????????????????????? | | ???????????????????????????????????????????????? | | ???????????????????????????????????????????????? | | ???????????????????????????????????????????????? | | ???????????????????????????????????????????????? | | ???????????????????????????????????????????????? | | ???????????????????????????????????????????????? | | ???????????????????????????????????????????????? | | ???????????????????????????????????????????????? | | ???????????????????????????????????????????????? | | ???????????????????????????????????????????????? | | ???????????????????????????????????????????????? | | ???????????????????????????????????????????????? | +----------------------------------------------------+ Best States ------------- Heat Dissipation 38 Energy Generation 14 Energy Capacity 280 Matter Stores 300 Matter Capacity 300 Sight Range 16 Terrain Scan Density 10 Armor Coverage 450 Evasion (%) 50 Recoil Reduction 2 Item Schematics ----------------- None Robot Schematics ------------------ None Fabricated ------------ Nothing Repaired ---------- Nothing Alien Tech Used ----------------- None Achievements -------------- None Challenges ------------ None Game ------ Seed MomentumMatterStatue Manual? 0 Play Time 00:27:54 Cumulative 175.9 hours Start 2025.10.05 @ 18:51:21 End 2025.10.07 @ 20:44:43 Sessions 2 Manual Loads 0 Difficulty Rogue Special Mode None Game No. 540 Rogue 539 Adventurer 1 Explorer 0 Win Type - Total 0 Types 0/0/0/0/0/0/0/0/0/0 Lore% 61 Gallery% 58 Achievement% 44 Wizard Run 0 Options --------- Layout 1 ASCII 0 Keyboard 0 Movement Mouse Keybinds 0 Fullscreen 1 Font 24/Smallcaps Map View 50x35 Zoom Use 0% Tactical HUD 0 Map Filters NONE Filters NONE Steam 1 RUN: eec00fa4-5175-4867-94da-b25d7d22f76c